{"text_format":"1","workbook":"xlsx","n_sheets":2,"sheets":["Лист1","Лист2"],"not_rendered":{"charts":0,"images":0,"macros":1,"external_links":0,"defined_names":0,"comments":0,"pivot_tables":0},"unopened":[],"bounds":{"document_bytes":16777216,"sheet_cells":100000,"rows_first":2000,"rows_last":500,"rows_between":2000,"halvings":0,"cell_chars":16384,"cell_head_chars":4096},"cells_cut":0,"cells_raw":0,"read":"whole","date_system":"1900"}

{"sheet":"Лист1","index":0,"n_rows":46,"n_cols":24,"rows_kept":46,"cut":false,"hidden":false,"merged":[[0,4,0,8],[0,11,0,20]]}
["Множество M","Все пары множества М","колво чисел множества m ",null,"сами множества m",null,null,null,null,null,null," пары в m",null,null,null,null,null,null,null,null,null,null,"Все пары ","количество пар во множествах м"]
[1,{"$f":"CONCATENATE($A$2,\"-\",A3)","v":"1-2"},5,null,1,2,3,4,5,null,null,{"$f":"CONCATENATE(E2,\"-\",F2)","v":"1-2"},{"$f":"CONCATENATE(E2,\"-\",G2)","v":"1-3"},{"$f":"CONCATENATE(E2,\"-\",H2)","v":"1-4"},{"$f":"CONCATENATE(E2,\"-\",I2)","v":"1-5"},{"$f":"CONCATENATE(F2,\"-\",G2)","v":"2-3"},{"$f":"CONCATENATE(F2,\"-\",H2)","v":"2-4"},{"$f":"CONCATENATE(F2,\"-\",I2)","v":"2-5"},{"$f":"CONCATENATE(G2,\"-\",H2)","v":"3-4"},{"$f":"CONCATENATE(G2,\"-\",I2)","v":"3-5"},{"$f":"CONCATENATE(H2,\"-\",I2)","v":"4-5"},null,"1-2",{"$f":"SUM(($L$2:$U$7=W2)*1)","v":1}]
[2,"1-3",null,null,2,3,4,5,6,null,null,{"$f":"CONCATENATE(E3,\"-\",F3)","v":"2-3"},{"$f":"CONCATENATE(E3,\"-\",G3)","v":"2-4"},{"$f":"CONCATENATE(E3,\"-\",H3)","v":"2-5"},{"$f":"CONCATENATE(E3,\"-\",I3)","v":"2-6"},{"$f":"CONCATENATE(F3,\"-\",G3)","v":"3-4"},{"$f":"CONCATENATE(F3,\"-\",H3)","v":"3-5"},{"$f":"CONCATENATE(F3,\"-\",I3)","v":"3-6"},{"$f":"CONCATENATE(G3,\"-\",H3)","v":"4-5"},{"$f":"CONCATENATE(G3,\"-\",I3)","v":"4-6"},{"$f":"CONCATENATE(H3,\"-\",I3)","v":"5-6"},null,"1-3",{"$f":"SUM(($L$2:$U$7=W3)*1)","v":1}]
[3,"1-4",null,null,3,4,5,6,7,null,null,"3-4","3-5","3-6","3-7","4-5","4-6","4-7","5-6","5-7","6-7",null,"1-4",{"$f":"SUM(($L$2:$U$7=W4)*1)","v":1}]
[4,"1-5",null,null,4,5,6,7,8,null,null,"4-5","4-6","4-7","4-8","5-6","5-7","5-8","6-7","6-8","7-8",null,"1-5",{"$f":"SUM(($L$2:$U$7=W5)*1)","v":1}]
[5,"1-6",null,null,5,6,7,8,9,null,null,"5-6","5-7","5-8","5-9","6-7","6-8","6-9","7-8","7-9","8-9",null,"1-6",{"$f":"SUM(($L$2:$U$7=W6)*1)","v":0}]
[6,"1-7",null,null,6,7,8,9,10,null,null,"6-7","6-8","6-9","6-10","7-8","7-9","7-10","8-9","8-10","9-10",null,"1-7",{"$f":"SUM(($L$2:$U$7=W7)*1)","v":0}]
[7,"1-8",null,null,null,null,null,null,null,null,null,null,null,null,null,null,null,null,null,null,null,null,"1-8",{"$f":"SUM(($L$2:$U$7=W8)*1)","v":0}]
[8,"1-9",null,null,null,null,null,null,null,null,null,null,null,null,null,null,null,null,null,null,null,null,"1-9",{"$f":"SUM(($L$2:$U$7=W9)*1)","v":0}]
[9,"1-10",null,null,null,null,null,null,null,null,null,null,null,null,null,null,null,null,null,null,null,null,"1-10",{"$f":"SUM(($L$2:$U$7=W10)*1)","v":0}]
[10,{"$f":"CONCATENATE($A$3,\"-\",A4)","v":"2-3"},null,null,null,null,null,null,null,null,null,null,null,null,null,null,null,null,null,null,null,null,"2-3",{"$f":"SUM(($L$2:$U$7=W11)*1)","v":2}]
[null,"2-4",null,null,null,null,null,null,null,null,null,null,null,null,null,null,null,null,null,null,null,null,"2-4",{"$f":"SUM(($L$2:$U$7=W12)*1)","v":2}]
[null,"2-5",null,null,null,null,null,null,null,null,null,null,null,null,null,null,null,null,null,null,null,null,"2-5",{"$f":"SUM(($L$2:$U$7=W13)*1)","v":2}]
[null,"2-6",null,null,"Нужно составить минимальное количество множеств m чтоб в них",null,null,null,null,null,null,null,null,null,null,null,null,null,null,null,null,null,"2-6",{"$f":"SUM(($L$2:$U$7=W14)*1)","v":1}]
[null,"2-7",null,null," уместились все пары из множества M",null,null,null,null,null,null,null,null,null,null,null,null,null,null,null,null,null,"2-7",{"$f":"SUM(($L$2:$U$7=W15)*1)","v":0}]
[null,"2-8",null,null,null,null,null,null,null,null,null,null,null,null,null,null,null,null,null,null,null,null,"2-8",{"$f":"SUM(($L$2:$U$7=W16)*1)","v":0}]
[null,"2-9",null,null,null,null,null,null,null,null,null,null,null,null,null,null,null,null,null,null,null,null,"2-9",{"$f":"SUM(($L$2:$U$7=W17)*1)","v":0}]
[null,"2-10",null,null,"как видно из составленных мной шести множеств есть пары которые ",null,null,null,null,null,null,null,null,null,null,null,null,null,null,null,null,null,"2-10",{"$f":"SUM(($L$2:$U$7=W18)*1)","v":0}]
[null,{"$f":"CONCATENATE($A$4,\"-\",A5)","v":"3-4"},null,null,"не повторились ни разу а есть которые несколько раз (см посл столбец)",null,null,null,null,null,null,null,null,null,null,null,null,null,null,null,null,null,"3-4",{"$f":"SUM(($L$2:$U$7=W19)*1)","v":3}]
[null,"3-5",null,null,null,null,null,null,null,null,null,null,null,null,null,null,null,null,null,null,null,null,"3-5",{"$f":"SUM(($L$2:$U$7=W20)*1)","v":3}]
[null,"3-6",null,null,null,null,null,null,null,null,null,null,null,null,null,null,null,null,null,null,null,null,"3-6",{"$f":"SUM(($L$2:$U$7=W21)*1)","v":2}]
[null,"3-7",null,null,null,null,null,null,null,null,null,null,null,null,null,null,null,null,null,null,null,null,"3-7",{"$f":"SUM(($L$2:$U$7=W22)*1)","v":1}]
[null,"3-8",null,null,null,null,null,null,null,null,null,null,null,null,null,null,null,null,null,null,null,null,"3-8",{"$f":"SUM(($L$2:$U$7=W23)*1)","v":0}]
[null,"3-9",null,null,null,null,null,null,null,null,null,null,null,null,null,null,null,null,null,null,null,null,"3-9",{"$f":"SUM(($L$2:$U$7=W24)*1)","v":0}]
[null,"3-10",null,null,null,null,null,null,null,null,null,null,null,null,null,null,null,null,null,null,null,null,"3-10",{"$f":"SUM(($L$2:$U$7=W25)*1)","v":0}]
[null,{"$f":"CONCATENATE($A$5,\"-\",A6)","v":"4-5"},null,null,null,null,null,null,null,null,null,null,null,null,null,null,null,null,null,null,null,null,"4-5",{"$f":"SUM(($L$2:$U$7=W26)*1)","v":4}]
[null,"4-6",null,null,null,null,null,null,null,null,null,null,null,null,null,null,null,null,null,null,null,null,"4-6",{"$f":"SUM(($L$2:$U$7=W27)*1)","v":3}]
[null,"4-7",null,null,null,null,null,null,null,null,null,null,null,null,null,null,null,null,null,null,null,null,"4-7",{"$f":"SUM(($L$2:$U$7=W28)*1)","v":2}]
[null,"4-8",null,null,null,null,null,null,null,null,null,null,null,null,null,null,null,null,null,null,null,null,"4-8",{"$f":"SUM(($L$2:$U$7=W29)*1)","v":1}]
[null,"4-9",null,null,null,null,null,null,null,null,null,null,null,null,null,null,null,null,null,null,null,null,"4-9",{"$f":"SUM(($L$2:$U$7=W30)*1)","v":0}]
[null,"4-10",null,null,null,null,null,null,null,null,null,null,null,null,null,null,null,null,null,null,null,null,"4-10",{"$f":"SUM(($L$2:$U$7=W31)*1)","v":0}]
[null,{"$f":"CONCATENATE($A$6,\"-\",A7)","v":"5-6"},null,null,null,null,null,null,null,null,null,null,null,null,null,null,null,null,null,null,null,null,"5-6",{"$f":"SUM(($L$2:$U$7=W32)*1)","v":4}]
[null,{"$f":"CONCATENATE($A$6,\"-\",A8)","v":"5-7"},null,null,null,null,null,null,null,null,null,null,null,null,null,null,null,null,null,null,null,null,"5-7",{"$f":"SUM(($L$2:$U$7=W33)*1)","v":3}]
[null,{"$f":"CONCATENATE($A$6,\"-\",A9)","v":"5-8"},null,null,null,null,null,null,null,null,null,null,null,null,null,null,null,null,null,null,null,null,"5-8",{"$f":"SUM(($L$2:$U$7=W34)*1)","v":2}]
[null,{"$f":"CONCATENATE($A$6,\"-\",A10)","v":"5-9"},null,null,null,null,null,null,null,null,null,null,null,null,null,null,null,null,null,null,null,null,"5-9",{"$f":"SUM(($L$2:$U$7=W35)*1)","v":1}]
[null,{"$f":"CONCATENATE($A$6,\"-\",A11)","v":"5-10"},null,null,null,null,null,null,null,null,null,null,null,null,null,null,null,null,null,null,null,null,"5-10",{"$f":"SUM(($L$2:$U$7=W36)*1)","v":0}]
[null,{"$f":"CONCATENATE($A$7,\"-\",A8)","v":"6-7"},null,null,null,null,null,null,null,null,null,null,null,null,null,null,null,null,null,null,null,null,"6-7",{"$f":"SUM(($L$2:$U$7=W37)*1)","v":4}]
[null,{"$f":"CONCATENATE($A$7,\"-\",A9)","v":"6-8"},null,null,null,null,null,null,null,null,null,null,null,null,null,null,null,null,null,null,null,null,"6-8",{"$f":"SUM(($L$2:$U$7=W38)*1)","v":3}]
[null,{"$f":"CONCATENATE($A$7,\"-\",A10)","v":"6-9"},null,null,null,null,null,null,null,null,null,null,null,null,null,null,null,null,null,null,null,null,"6-9",{"$f":"SUM(($L$2:$U$7=W39)*1)","v":2}]
[null,{"$f":"CONCATENATE($A$7,\"-\",A11)","v":"6-10"},null,null,null,null,null,null,null,null,null,null,null,null,null,null,null,null,null,null,null,null,"6-10",{"$f":"SUM(($L$2:$U$7=W40)*1)","v":1}]
[null,{"$f":"CONCATENATE($A$8,\"-\",A9)","v":"7-8"},null,null,null,null,null,null,null,null,null,null,null,null,null,null,null,null,null,null,null,null,"7-8",{"$f":"SUM(($L$2:$U$7=W41)*1)","v":3}]
[null,{"$f":"CONCATENATE($A$8,\"-\",A10)","v":"7-9"},null,null,null,null,null,null,null,null,null,null,null,null,null,null,null,null,null,null,null,null,"7-9",{"$f":"SUM(($L$2:$U$7=W42)*1)","v":2}]
[null,{"$f":"CONCATENATE($A$8,\"-\",A11)","v":"7-10"},null,null,null,null,null,null,null,null,null,null,null,null,null,null,null,null,null,null,null,null,"7-10",{"$f":"SUM(($L$2:$U$7=W43)*1)","v":1}]
[null,{"$f":"CONCATENATE($A$9,\"-\",A10)","v":"8-9"},null,null,null,null,null,null,null,null,null,null,null,null,null,null,null,null,null,null,null,null,"8-9",{"$f":"SUM(($L$2:$U$7=W44)*1)","v":2}]
[null,{"$f":"CONCATENATE($A$9,\"-\",A11)","v":"8-10"},null,null,null,null,null,null,null,null,null,null,null,null,null,null,null,null,null,null,null,null,"8-10",{"$f":"SUM(($L$2:$U$7=W45)*1)","v":1}]
[null,{"$f":"CONCATENATE($A$10,\"-\",A11)","v":"9-10"},null,null,null,null,null,null,null,null,null,null,null,null,null,null,null,null,null,null,null,null,"9-10",{"$f":"SUM(($L$2:$U$7=W46)*1)","v":1}]

{"sheet":"Лист2","index":1,"n_rows":67,"n_cols":37,"rows_kept":67,"cut":false,"hidden":false,"merged":[[0,4,0,10],[0,13,0,33]]}
["Множество M","Все пары множества М","колво чисел множества m ",null,"сами множества m",null,null,null,null,null,null,null,null,"пары в m",null,null,null,null,null,null,null,null,null,null,null,null,null,null,null,null,null,null,null,null,null,"Все пары","Количество пар во множествах m"]
[1,"1-2",7,null,1,2,3,4,5,6,7,null,null,"1-2","1-3","1-4","1-5","1-6","1-7","2-3","2-4","2-5","2-6","2-7","3-4","3-5","3-6","3-7","4-5","4-6","4-7","5-6","5-7","6-7",null,"1-2",4]
[2,"1-3",null,null,1,2,3,4,8,9,10,null,null,"1-2","1-3","1-4","1-8","1-9","1-10","2-3","2-4","2-8","2-9","2-10","3-4","3-8","3-9","3-10","4-8","4-9","4-10","8-9","8-10","9-10",null,"1-3",3]
[3,"1-4",null,null,1,2,3,5,8,11,12,null,null,"1-2","1-3","1-5","1-8","1-11","1-12","2-3","2-5","2-8","2-11","2-12","3-5","3-8","3-11","3-12","5-8","5-11","5-12","8-11","8-12","11-12",null,"1-4",3]
[4,"1-5",null,null,4,5,6,7,8,9,11,null,null,"4-5","4-6","4-7","4-8","4-9","4-11","5-6","5-7","5-8","5-9","5-11","6-7","6-8","6-9","6-11","7-8","7-9","7-11","8-9","8-11","9-11",null,"1-5",3]
[5,"1-6",null,null,1,4,5,6,9,10,12,null,null,"1-4","1-5","1-6","1-9","1-10","1-12","4-5","4-6","4-9","4-10","4-12","5-6","5-9","5-10","5-12","6-9","6-10","6-12","9-10","9-12","10-12",null,"1-6",3]
[6,"1-7",null,null,1,2,6,7,9,10,11,null,null,"1-2","1-6","1-7","1-9","1-10","1-11","2-6","2-7","2-9","2-10","2-11","6-7","6-9","6-10","6-11","7-9","7-10","7-11","9-10","9-11","10-11",null,"1-7",2]
[7,"1-8",null,null,2,3,4,6,7,11,12,null,null,"2-3","2-4","2-6","2-7","2-11","2-12","3-4","3-6","3-7","3-11","3-12","4-6","4-7","4-11","4-12","6-7","6-11","6-12","7-11","7-12","11-12",null,"1-8",2]
[8,"1-9",null,null,null,null,null,null,null,null,null,null,null,null,null,null,null,null,null,null,null,null,null,null,null,null,null,null,null,null,null,null,null,null,null,"1-9",3]
[9,"1-10",null,null,null,null,null,null,null,null,null,null,null,null,null,null,null,null,null,null,null,null,null,null,null,null,null,null,null,null,null,null,null,null,null,"1-10",3]
[10,"1-11",null,null,null,null,null,null,null,null,null,null,null,null,null,null,null,null,null,null,null,null,null,null,null,null,null,null,null,null,null,null,null,null,null,"1-11",2]
[11,"1-12",null,null,null,null,null,null,null,null,null,null,null,null,null,null,null,null,null,null,null,null,null,null,null,null,null,null,null,null,null,null,null,null,null,"1-12",2]
[12,"2-3",null,null,null,null,null,null,null,null,null,null,null,null,null,null,null,null,null,null,null,null,null,null,null,null,null,null,null,null,null,null,null,null,null,"2-3",4]
[null,"2-4",null,null,null,null,null,null,null,null,null,null,null,null,null,null,null,null,null,null,null,null,null,null,null,null,null,null,null,null,null,null,null,null,null,"2-4",3]
[null,"2-5",null,null,null,null,null,null,null,null,null,null,null,null,null,null,null,null,null,null,null,null,null,null,null,null,null,null,null,null,null,null,null,null,null,"2-5",2]
[null,"2-6",null,null,null,null,null,null,null,null,null,null,null,null,null,null,null,null,null,null,null,null,null,null,null,null,null,null,null,null,null,null,null,null,null,"2-6",3]
[null,"2-7",null,null,null,null,null,null,null,null,null,null,null,null,null,null,null,null,null,null,null,null,null,null,null,null,null,null,null,null,null,null,null,null,null,"2-7",3]
[null,"2-8",null,null,null,null,null,null,null,null,null,null,null,null,null,null,null,null,null,null,null,null,null,null,null,null,null,null,null,null,null,null,null,null,null,"2-8",2]
[null,"2-9",null,null,null,null,null,null,null,null,null,null,null,null,null,null,null,null,null,null,null,null,null,null,null,null,null,null,null,null,null,null,null,null,null,"2-9",2]
[null,"2-10",null,null,null,null,null,null,null,null,null,null,null,null,null,null,null,null,null,null,null,null,null,null,null,null,null,null,null,null,null,null,null,null,null,"2-10",2]
[null,"2-11",null,null,null,null,null,null,null,null,null,null,null,null,null,null,null,null,null,null,null,null,null,null,null,null,null,null,null,null,null,null,null,null,null,"2-11",3]
[null,"2-12",null,null,null,null,null,null,null,null,null,null,null,null,null,null,null,null,null,null,null,null,null,null,null,null,null,null,null,null,null,null,null,null,null,"2-12",2]
[null,"3-4",null,null,null,null,null,null,null,null,null,null,null,null,null,null,null,null,null,null,null,null,null,null,null,null,null,null,null,null,null,null,null,null,null,"3-4",3]
[null,"3-5",null,null,null,null,null,null,null,null,null,null,null,null,null,null,null,null,null,null,null,null,null,null,null,null,null,null,null,null,null,null,null,null,null,"3-5",2]
[null,"3-6",null,null,null,null,null,null,null,null,null,null,null,null,null,null,null,null,null,null,null,null,null,null,null,null,null,null,null,null,null,null,null,null,null,"3-6",2]
[null,"3-7",null,null,null,null,null,null,null,null,null,null,null,null,null,null,null,null,null,null,null,null,null,null,null,null,null,null,null,null,null,null,null,null,null,"3-7",2]
[null,"3-8",null,null,null,null,null,null,null,null,null,null,null,null,null,null,null,null,null,null,null,null,null,null,null,null,null,null,null,null,null,null,null,null,null,"3-8",2]
[null,"3-9",null,null,null,null,null,null,null,null,null,null,null,null,null,null,null,null,null,null,null,null,null,null,null,null,null,null,null,null,null,null,null,null,null,"3-9",1]
[null,"3-10",null,null,null,null,null,null,null,null,null,null,null,null,null,null,null,null,null,null,null,null,null,null,null,null,null,null,null,null,null,null,null,null,null,"3-10",1]
[null,"3-11",null,null,null,null,null,null,null,null,null,null,null,null,null,null,null,null,null,null,null,null,null,null,null,null,null,null,null,null,null,null,null,null,null,"3-11",2]
[null,"3-12",null,null,null,null,null,null,null,null,null,null,null,null,null,null,null,null,null,null,null,null,null,null,null,null,null,null,null,null,null,null,null,null,null,"3-12",2]
[null,"4-5",null,null,null,null,null,null,null,null,null,null,null,null,null,null,null,null,null,null,null,null,null,null,null,null,null,null,null,null,null,null,null,null,null,"4-5",3]
[null,"4-6",null,null,null,null,null,null,null,null,null,null,null,null,null,null,null,null,null,null,null,null,null,null,null,null,null,null,null,null,null,null,null,null,null,"4-6",4]
[null,"4-7",null,null,null,null,null,null,null,null,null,null,null,null,null,null,null,null,null,null,null,null,null,null,null,null,null,null,null,null,null,null,null,null,null,"4-7",3]
[null,"4-8",null,null,null,null,null,null,null,null,null,null,null,null,null,null,null,null,null,null,null,null,null,null,null,null,null,null,null,null,null,null,null,null,null,"4-8",2]
[null,"4-9",null,null,null,null,null,null,null,null,null,null,null,null,null,null,null,null,null,null,null,null,null,null,null,null,null,null,null,null,null,null,null,null,null,"4-9",3]
[null,"4-10",null,null,null,null,null,null,null,null,null,null,null,null,null,null,null,null,null,null,null,null,null,null,null,null,null,null,null,null,null,null,null,null,null,"4-10",2]
[null,"4-11",null,null,null,null,null,null,null,null,null,null,null,null,null,null,null,null,null,null,null,null,null,null,null,null,null,null,null,null,null,null,null,null,null,"4-11",2]
[null,"4-12",null,null,null,null,null,null,null,null,null,null,null,null,null,null,null,null,null,null,null,null,null,null,null,null,null,null,null,null,null,null,null,null,null,"4-12",2]
[null,"5-6",null,null,null,null,null,null,null,null,null,null,null,null,null,null,null,null,null,null,null,null,null,null,null,null,null,null,null,null,null,null,null,null,null,"5-6",3]
[null,"5-7",null,null,null,null,null,null,null,null,null,null,null,null,null,null,null,null,null,null,null,null,null,null,null,null,null,null,null,null,null,null,null,null,null,"5-7",2]
[null,"5-8",null,null,null,null,null,null,null,null,null,null,null,null,null,null,null,null,null,null,null,null,null,null,null,null,null,null,null,null,null,null,null,null,null,"5-8",2]
[null,"5-9",null,null,null,null,null,null,null,null,null,null,null,null,null,null,null,null,null,null,null,null,null,null,null,null,null,null,null,null,null,null,null,null,null,"5-9",2]
[null,"5-10",null,null,null,null,null,null,null,null,null,null,null,null,null,null,null,null,null,null,null,null,null,null,null,null,null,null,null,null,null,null,null,null,null,"5-10",1]
[null,"5-11",null,null,null,null,null,null,null,null,null,null,null,null,null,null,null,null,null,null,null,null,null,null,null,null,null,null,null,null,null,null,null,null,null,"5-11",2]
[null,"5-12",null,null,null,null,null,null,null,null,null,null,null,null,null,null,null,null,null,null,null,null,null,null,null,null,null,null,null,null,null,null,null,null,null,"5-12",2]
[null,"6-7",null,null,null,null,null,null,null,null,null,null,null,null,null,null,null,null,null,null,null,null,null,null,null,null,null,null,null,null,null,null,null,null,null,"6-7",4]
[null,"6-8",null,null,null,null,null,null,null,null,null,null,null,null,null,null,null,null,null,null,null,null,null,null,null,null,null,null,null,null,null,null,null,null,null,"6-8",1]
[null,"6-9",null,null,null,null,null,null,null,null,null,null,null,null,null,null,null,null,null,null,null,null,null,null,null,null,null,null,null,null,null,null,null,null,null,"6-9",3]
[null,"6-10",null,null,null,null,null,null,null,null,null,null,null,null,null,null,null,null,null,null,null,null,null,null,null,null,null,null,null,null,null,null,null,null,null,"6-10",2]
[null,"6-11",null,null,null,null,null,null,null,null,null,null,null,null,null,null,null,null,null,null,null,null,null,null,null,null,null,null,null,null,null,null,null,null,null,"6-11",3]
[null,"6-12",null,null,null,null,null,null,null,null,null,null,null,null,null,null,null,null,null,null,null,null,null,null,null,null,null,null,null,null,null,null,null,null,null,"6-12",2]
[null,"7-8",null,null,null,null,null,null,null,null,null,null,null,null,null,null,null,null,null,null,null,null,null,null,null,null,null,null,null,null,null,null,null,null,null,"7-8",1]
[null,"7-9",null,null,null,null,null,null,null,null,null,null,null,null,null,null,null,null,null,null,null,null,null,null,null,null,null,null,null,null,null,null,null,null,null,"7-9",2]
[null,"7-10",null,null,null,null,null,null,null,null,null,null,null,null,null,null,null,null,null,null,null,null,null,null,null,null,null,null,null,null,null,null,null,null,null,"7-10",1]
[null,"7-11",null,null,null,null,null,null,null,null,null,null,null,null,null,null,null,null,null,null,null,null,null,null,null,null,null,null,null,null,null,null,null,null,null,"7-11",3]
[null,"7-12",null,null,null,null,null,null,null,null,null,null,null,null,null,null,null,null,null,null,null,null,null,null,null,null,null,null,null,null,null,null,null,null,null,"7-12",1]
[null,"8-9",null,null,null,null,null,null,null,null,null,null,null,null,null,null,null,null,null,null,null,null,null,null,null,null,null,null,null,null,null,null,null,null,null,"8-9",2]
[null,"8-10",null,null,null,null,null,null,null,null,null,null,null,null,null,null,null,null,null,null,null,null,null,null,null,null,null,null,null,null,null,null,null,null,null,"8-10",1]
[null,"8-11",null,null,null,null,null,null,null,null,null,null,null,null,null,null,null,null,null,null,null,null,null,null,null,null,null,null,null,null,null,null,null,null,null,"8-11",2]
[null,"8-12",null,null,null,null,null,null,null,null,null,null,null,null,null,null,null,null,null,null,null,null,null,null,null,null,null,null,null,null,null,null,null,null,null,"8-12",1]
[null,"9-10",null,null,null,null,null,null,null,null,null,null,null,null,null,null,null,null,null,null,null,null,null,null,null,null,null,null,null,null,null,null,null,null,null,"9-10",3]
[null,"9-11",null,null,null,null,null,null,null,null,null,null,null,null,null,null,null,null,null,null,null,null,null,null,null,null,null,null,null,null,null,null,null,null,null,"9-11",2]
[null,"9-12",null,null,null,null,null,null,null,null,null,null,null,null,null,null,null,null,null,null,null,null,null,null,null,null,null,null,null,null,null,null,null,null,null,"9-12",1]
[null,"10-11",null,null,null,null,null,null,null,null,null,null,null,null,null,null,null,null,null,null,null,null,null,null,null,null,null,null,null,null,null,null,null,null,null,"10-11",1]
[null,"10-12",null,null,null,null,null,null,null,null,null,null,null,null,null,null,null,null,null,null,null,null,null,null,null,null,null,null,null,null,null,null,null,null,null,"10-12",1]
[null,"11-12",null,null,null,null,null,null,null,null,null,null,null,null,null,null,null,null,null,null,null,null,null,null,null,null,null,null,null,null,null,null,null,null,null,"11-12",2]